bitfinex-derivatives/quotes_ETHF0:USTF0_20241207
["timestamp","ask_amount","ask_price","bid_price","bid_amount"]
[1733579590545,0.17492,3997.1,3997.0,11.37388432]
[1733579590743,3.34236273,3997.4,3997.1,0.17492]
[1733579590744,0.17492,3997.2,3997.1,0.17492]
[1733579590950,0.17492,3997.2,3997.1,5.47278477]
[1733579591845,0.17492,3997.2,3997.1,11.3717311]
[1733579592045,0.17492,3997.2,3997.1,11.1968111]
[1733579592851,0.17492,3997.2,3997.1,11.3717311]
[1733579593052,0.17492,3997.2,3997.1,11.36909544]
[1733579593748,0.17492,3997.2,3997.1,5.47014911]
[1733579594051,0.17492,3997.2,3997.1,11.36909544]
[1733579594251,0.17492,3997.2,3997.1,5.29522911]
[1733579594648,0.17492,3997.2,3997.1,5.29411086]
[1733579596353,0.17491,3997.4,3997.3,0.17491]
[1733579596559,0.17491,3997.4,3997.3,4.10525858]
[1733579597250,0.17491,3997.4,3997.2,6.29334633]
[1733579597251,0.1749,3997.6,3997.5,0.1749]
[1733579597456,3.11156273,3997.6,3997.5,1.07533086]
[1733579597645,0.1749,3997.6,3997.5,1.07533086]
[1733579597852,2.93666273,3997.7,3997.6,0.1749]
[1733579598044,3.50405273,3997.8,3997.7,0.17489]
[1733579598244,0.56739,3997.8,3997.7,0.58109]
[1733579599352,0.3925,3997.8,3997.7,0.58109]
[1733579600055,0.56739,3997.8,3997.7,0.58109]
[1733579600453,0.17489,3997.8,3997.7,0.58109]
[1733579600854,3.2078,3997.9,3997.2,3.9301373]
[1733579601055,0.17491,3997.4,3997.3,0.58261]
[1733579602559,0.17491,3997.4,3997.3,1.48304086]
[1733579602761,4.10823086,3997.9,3997.0,7.1379373]
[1733579603061,4.10823086,3997.9,3997.2,0.17492]
[1733579603062,0.17491,3997.3,3997.2,0.17492]
[1733579603656,0.17491,3997.3,3997.2,0.58792]
[1733579605058,0.17491,3997.3,3997.2,0.97792]
[1733579605757,0.17491,3997.3,3997.2,1.87835086]
[1733579606361,0.17491,3997.3,3997.2,1.70343086]
[1733579608659,0.17492,3997.1,3997.0,3.9301373]
[1733579608859,0.17493,3996.9,3996.8,41.87536086]
[1733579609165,0.17493,3997.1,3997.0,0.17492]
[1733579609563,0.17493,3997.1,3997.0,1.07535086]
[1733579609768,0.17493,3997.1,3997.0,0.90043086]
[1733579611561,0.17493,3997.0,3996.9,1.28983086]
[1733579612164,0.7697,3997.2,3996.8,40.8]
[1733579612462,0.57173,3996.9,3996.8,40.8]
[1733579624374,0.3968,3996.9,3996.6,0.90043086]
[1733579624574,0.17494,3996.7,3996.6,0.90043086]
[1733579624970,0.17494,3996.7,3996.6,41.70043086]
[1733579626884,0.17494,3996.7,3996.6,40.8]
[1733579627184,0.17494,3996.7,3996.6,41.70043086]
[1733579628882,0.17494,3996.7,3996.6,0.90043086]
[1733579629784,3.2078,3996.7,3996.3,0.8179]
[1733579630085,0.17495,3996.4,3996.3,0.8179]
[1733579630580,0.17495,3996.4,3996.3,0.4046]
[1733579631587,0.17495,3996.4,3996.3,41.2046]
[1733579632685,0.17495,3996.4,3996.3,42.10503086]
[1733579632988,0.17495,3996.4,3996.3,42.27998086]
[1733579633489,0.17495,3996.4,3996.3,42.10503086]
[1733579634885,0.17495,3996.4,3996.3,1.30503086]
[1733579635384,0.17495,3996.4,3996.3,1.47999086]
[1733579637891,0.17495,3996.4,3996.3,42.27999086]
[1733579640189,0.17495,3996.4,3996.3,1.47999086]
[1733579640696,0.17495,3996.4,3996.3,42.27999086]
[1733579641396,0.17495,3996.4,3996.3,1.47999086]
[1733579642495,0.17494,3996.7,3996.6,0.17494]
[1733579642695,0.17494,3996.7,3996.6,1.07537086]
[1733579642893,3.2078,3996.8,3996.4,0.4022]
[1733579643098,0.17495,3996.4,3996.3,0.4046]
[1733579643594,0.17495,3996.5,3996.4,0.17495]
[1733579647594,0.17495,3996.4,3996.3,0.4046]
[1733579648593,0.17495,3996.4,3996.3,0.57956]
[1733579649702,0.17495,3996.4,3996.3,0.4046]
[1733579651404,0.17495,3996.4,3996.3,0.57956]
[1733579655108,0.17495,3996.4,3996.3,0.99206]
[1733579656412,0.17495,3996.4,3996.3,4.9221973]
[1733579656716,3.34606273,3996.6,3996.3,4.9221973]
[1733579656717,0.17494,3996.6,3996.5,0.17495]
[1733579656909,0.17494,3996.6,3996.5,10.49108822]
[1733579658215,0.17494,3996.6,3996.5,4.4154716]
[1733579658415,0.17494,3996.6,3996.5,10.31613822]
[1733579658616,0.17494,3996.6,3996.5,10.49108822]
[1733579659017,0.17494,3996.6,3996.5,10.31613822]
[1733579659314,0.17494,3996.6,3996.5,10.49108822]
[1733579659514,0.17494,3996.6,3996.5,10.49320311]
[1733579660416,0.17494,3996.6,3996.5,4.5904216]
[1733579660605,0.17494,3996.6,3996.5,10.4950064]
[1733579661007,0.17494,3996.6,3996.5,4.59203827]
[1733579661314,0.17494,3996.6,3996.5,10.49500898]
[1733579663818,0.17494,3996.6,3996.5,4.59203827]
[1733579664022,0.17494,3996.6,3996.5,10.49570243]
[1733579664520,0.17494,3996.6,3996.5,4.59203827]
[1733579664713,0.17494,3996.6,3996.5,4.11092547]
[1733579666119,3.11340963,3996.6,3996.5,4.11092547]
[1733579666714,0.17494,3996.6,3996.5,4.11092547]
[1733579667011,3.11345056,3996.6,3996.5,4.11092547]
[1733579667411,3.11345056,3996.6,3996.5,4.50082547]
[1733579667617,3.11345056,3996.6,3996.5,0.56485]
[1733579667812,3.11345056,3996.6,3996.5,4.50088573]
[1733579668014,3.11345056,3996.6,3996.5,0.56485]
[1733579668214,2.93851056,3996.6,3996.5,0.56485]
[1733579668513,2.93851056,3996.6,3996.5,4.98289561]
[1733579669607,2.93851056,3996.6,3996.5,4.98284959]
[1733579670012,2.93851056,3996.6,3996.5,0.56485]
[1733579670414,2.93851056,3996.6,3996.5,4.50096008]
[1733579670615,2.93851056,3996.6,3996.5,4.98287647]
[1733579671820,0.17494,3996.7,3996.5,4.80792647]
[1733579672120,0.17494,3996.8,3996.7,0.17493]
[1733579672317,0.17494,3996.8,3996.7,10.49703281]
[1733579675517,0.17494,3996.8,3996.7,10.49677095]
[1733579678324,0.17493,3996.9,3996.8,0.17493]
[1733579678517,2.93851056,3997.2,3996.8,4.41776461]
[1733579678724,4.09456169,3997.4,3997.3,0.17491]
[1733579678725,2.93851056,3997.4,3997.3,0.17491]
[1733579678925,3.6179,3997.5,3997.4,0.17491]
[1733579679120,3.6179,3997.5,3997.4,5.49310547]
[1733579679323,3.2078,3997.5,3997.4,11.77142403]
[1733579679628,3.50111056,3997.7,3997.4,5.69399547]
[1733579679830,0.5626,3997.7,3997.6,0.1749]
[1733579680129,3.91831733,3997.8,3997.7,0.17489]
[1733579680326,3.91831733,3997.8,3997.7,1.07532086]
[1733579680524,3.6184,3997.9,3997.8,0.17489]
[1733579680821,3.6184,3997.9,3997.5,0.1749]
[1733579680822,0.1749,3997.6,3997.5,0.1749]
[1733579681131,3.11237051,3997.6,3997.5,0.1749]
[1733579681328,0.1749,3997.6,3997.5,0.1749]
[1733579681629,2.93666301,3997.6,3997.5,40.9749]
[1733579682625,3.33336301,3997.7,3997.6,0.1749]
[1733579682821,3.50825301,3997.7,3997.6,0.1749]
[1733579683025,3.50825301,3997.7,3997.5,40.8]
[1733579683026,0.1749,3997.6,3997.5,40.9749]
[1733579684316,0.1749,3997.6,3997.5,0.1749]
[1733579686124,0.1749,3997.6,3997.5,1.07533086]
[1733579686318,0.1749,3997.6,3997.5,0.90043086]
[1733579686526,0.1749,3997.6,3997.5,1.07533086]
[1733579687229,0.1749,3997.6,3997.5,0.90043086]
[1733579687430,0.1749,3997.6,3997.5,1.07533086]
[1733579687734,0.1749,3997.6,3997.5,0.90043086]
[1733579689030,0.1749,3997.6,3997.5,1.07533086]
[1733579691232,0.1749,3997.6,3997.5,0.90043086]
[1733579692630,0.1749,3997.6,3997.5,1.07533086]
[1733579692832,0.1749,3997.6,3997.5,0.90043086]
[1733579693335,0.1749,3997.6,3997.5,1.32543276]
[1733579694331,0.1749,3997.6,3997.5,1.15053276]
[1733579694630,0.43727,3997.5,3996.9,3.93345073]
[1733579694830,0.17493,3996.9,3996.8,1.48716086]
[1733579695337,0.17492,3997.2,3997.1,0.17492]
[1733579695635,0.3866,3997.4,3997.1,0.17492]
[1733579695835,0.17492,3997.2,3997.1,0.90043086]
[1733579696331,0.17491,3997.4,3997.3,0.17491]
[1733579697237,0.17491,3997.4,3997.3,0.94781]
[1733579701434,0.17491,3997.4,3997.3,0.7729]
[1733579701937,0.17491,3997.5,3997.4,0.1749]
[1733579704929,2.93666301,3997.7,3997.4,0.90043086]
[1733579705130,6.14446301,3998.4,3997.6,3.2078]
[1733579705334,0.3893,3998.3,3998.2,0.17487]
[1733579705538,0.3893,3998.3,3998.2,40.97487]
[1733579706339,0.3893,3998.3,3998.2,0.17487]
[1733579707640,2.93666301,3998.8,3998.2,0.90043086]
[1733579707938,0.57725,3998.8,3998.7,1.07528086]
[1733579711442,0.17486,3998.5,3998.4,0.17486]
[1733579711635,0.17487,3998.4,3998.3,0.17486]
[1733579711836,0.57817,3998.4,3998.3,0.17486]
[1733579712535,0.17487,3998.4,3998.3,0.17486]
[1733579712840,0.17487,3998.3,3998.2,0.17487]
[1733579713033,0.57697,3998.3,3998.2,0.17487]
[1733579713232,0.57697,3998.3,3998.1,0.17487]
[1733579713233,0.17488,3998.2,3998.1,0.17487]
[1733579713944,0.4021,3998.3,3997.9,0.90043086]
[1733579713945,0.17488,3998.1,3998.0,0.17488]
[1733579714235,0.4033,3998.1,3997.9,0.90043086]
[1733579714434,0.17488,3998.0,3997.9,0.90043086]
[1733579714634,0.17488,3998.0,3997.9,1.07532086]
[1733579715236,0.17488,3998.0,3997.9,0.90043086]
[1733579715845,0.17488,3998.0,3997.9,1.07532086]
[1733579716650,0.57818,3998.1,3998.0,0.17488]
[1733579718346,0.17488,3998.0,3997.9,1.07531086]
[1733579719546,0.4033,3998.1,3997.9,0.90043086]
[1733579719753,0.57818,3998.1,3998.0,0.17488]
[1733579720244,0.4033,3998.1,3998.0,0.17488]
[1733579720448,0.4021,3998.3,3998.1,0.17488]
[1733579720745,0.57697,3998.3,3998.2,1.07530086]
[1733579720944,0.4021,3998.3,3998.2,1.07530086]
[1733579721144,0.57816,3998.5,3998.4,0.17486]
[1733579721341,0.4033,3998.5,3998.4,0.17486]
[1733579721744,0.4033,3998.5,3998.3,0.3838]
[1733579721745,0.4075,3998.6,3998.5,0.17486]
[1733579722042,0.17484,3999.0,3998.9,0.17484]
[1733579722345,0.17484,3999.0,3998.9,1.07527086]
[1733579723752,3.2078,3999.1,3998.9,0.90043086]
[1733579724059,3.38264,3999.1,3999.0,0.17484]
[1733579727958,3.2078,3999.1,3999.0,0.17484]
[1733579728558,0.3755,3999.4,3999.3,0.17482]
[1733579728858,0.3755,3999.4,3999.3,1.07525086]
[1733579735260,0.17481,3999.6,3999.3,0.90043086]
[1733579735455,0.17481,3999.7,3999.6,0.17481]
[1733579738661,0.17481,3999.6,3999.5,1.07524086]
[1733579738863,0.17481,3999.6,3999.5,1.07525086]
[1733579740163,0.90043086,3999.7,3999.0,0.3993]
[1733579740362,0.90043086,3999.7,3998.7,0.90043086]
[1733579740363,3.64486,3999.4,3998.7,0.90043086]
[1733579740560,0.17484,3998.9,3998.8,0.17484]
[1733579741265,0.17485,3998.8,3998.7,1.07528086]
[1733579741565,0.57565,3998.8,3998.7,1.07528086]
[1733579743965,0.57565,3998.8,3998.7,0.90043086]
[1733579744464,0.4008,3998.8,3998.3,0.90043086]
[1733579744664,0.4119,3998.7,3998.3,0.90043086]
[1733579744866,0.17486,3998.4,3998.3,41.70043086]
[1733579745370,0.17486,3998.4,3998.3,41.87530086]
[1733579749369,0.4119,3998.7,3998.0,0.7602]
[1733579749675,0.17488,3998.1,3998.0,1.66063086]
[1733579749873,0.17488,3998.1,3998.0,42.08063086]
[1733579750176,0.17488,3998.1,3998.0,41.70043086]
[1733579750569,0.17488,3998.1,3998.0,0.90043086]
[1733579750570,0.58468,3998.1,3998.0,0.90043086]
[1733579751562,0.97198,3998.1,3998.0,0.90043086]
[1733579753077,0.58468,3998.1,3998.0,0.90043086]
[1733579755171,0.95788,3998.1,3998.0,0.90043086]
[1733579757273,0.95788,3998.1,3998.0,1.07531086]
[1733579758477,3.2078,3998.3,3998.0,0.90043086]
[1733579758685,3.2078,3998.3,3998.2,0.17487]
[1733579761372,3.58466301,3999.0,3998.1,0.786]
[1733579761373,3.2078,3998.8,3998.1,0.786]
[1733579761573,3.2078,3998.8,3998.7,1.07528086]
[1733579761574,3.38265,3998.8,3998.7,1.07528086]
[1733579762379,3.2078,3998.8,3998.7,1.07528086]
[1733579762878,3.38265,3998.8,3998.7,1.07528086]
[1733579763380,3.2078,3998.8,3998.7,1.07528086]
[1733579764977,3.38265,3998.8,3998.7,1.07528086]
[1733579765276,3.2078,3998.8,3998.7,1.07528086]
[1733579767082,0.17484,3998.9,3998.8,0.17485]
[1733579767684,0.17484,3998.9,3998.8,0.55085]
[1733579769480,0.17484,3999.0,3998.9,0.17484]
[1733579770781,0.17484,3998.9,3998.8,0.55084]
[1733579771283,0.17484,3999.0,3998.9,0.17484]
[1733579772180,0.4125,3999.1,3998.8,0.7828]
[1733579772383,2.93666301,3999.3,3999.0,0.90043086]
[1733579772578,0.17482,3999.4,3999.3,0.17482]
[1733579772779,0.17482,3999.4,3999.3,1.07525086]
[1733579773376,0.17482,3999.5,3999.4,0.17482]
[1733579773882,0.17482,3999.4,3999.3,1.07525086]
[1733579774487,0.17482,3999.5,3999.4,0.17482]
[1733579775184,3.71546301,3999.7,3999.3,0.90043086]
[1733579775386,0.17482,3999.4,3999.3,1.07525086]
[1733579777594,0.17482,3999.4,3999.3,0.90043086]
[1733579777893,0.17484,3999.1,3999.0,0.17484]
[1733579778086,0.17484,3999.0,3998.9,0.90043086]
[1733579778280,0.57124,3999.0,3998.9,0.90043086]
[1733579780081,0.3964,3999.0,3998.7,0.17485]
[1733579780282,0.17485,3998.8,3998.7,1.07528086]
[1733579783194,0.17485,3998.8,3998.7,0.90043086]
[1733579783594,0.17485,3998.8,3998.7,1.07528086]
[1733579784905,2.93666301,3999.3,3999.2,0.17483]
[1733579785090,3.2078,3999.5,3999.2,0.90043086]
[1733579785288,0.17482,3999.3,3999.2,1.07526086]
[1733579786791,3.2078,3999.5,3999.2,0.90043086]
[1733579787091,0.17482,3999.4,3999.3,0.17482]
[1733579788092,3.2078,3999.5,3999.4,0.17482]
[1733579788901,0.17481,3999.6,3999.5,0.17481]
[1733579789204,0.17481,3999.6,3999.5,1.07524086]
[1733579791603,0.55131,3999.7,3999.6,0.17481]
[1733579791906,0.55131,3999.7,3999.6,0.55031]
[1733579792092,3.2078,4000.0,3999.6,1.69033086]
[1733579792292,3.2078,4000.0,3999.9,1.07523086]
[1733579792597,3.38259,4000.0,3999.9,1.07523086]
[1733579793299,3.2078,4000.0,3999.9,1.07523086]
[1733579794601,0.56439,4000.1,3999.9,1.07523086]
[1733579794902,0.3896,4000.1,4000.0,0.17479]
[1733579795198,3.5974,4000.1,4000.0,0.54949]
[1733579796496,3.2078,4000.1,4000.0,0.54949]
[1733579800901,3.2078,4000.1,4000.0,1.19749]
[1733579802307,3.2078,4000.1,4000.0,41.99749]
[1733579803011,3.2078,4000.1,4000.0,1.19749]
[1733579804202,0.17477,4000.6,4000.5,0.17477]
[1733579804402,0.17477,4000.6,4000.5,1.07520086]
[1733579804603,0.4129,4000.6,4000.5,1.07520086]
[1733579804805,0.58767,4000.6,4000.5,1.07520086]
[1733579805506,0.99467,4000.6,4000.5,1.07520086]
[1733579807006,0.99468,4000.6,4000.5,1.07520086]
[1733579807204,0.8199,4000.6,4000.5,1.07520086]
[1733579807407,0.99468,4000.6,4000.5,1.07520086]
[1733579810412,4.20248,4000.6,4000.5,0.90043086]
[1733579813822,4.20248,4000.6,4000.5,1.07522086]
[1733579815611,0.99468,4000.6,4000.5,1.07522086]
[1733579815815,4.20248,4000.6,4000.5,1.07522086]
[1733579817419,4.20248,4000.6,4000.5,0.90043086]
[1733579819618,4.20248,4000.6,4000.5,1.07522086]
[1733579820118,4.20248,4000.6,4000.5,0.90043086]
[1733579820318,4.20248,4000.6,4000.5,1.07522086]
[1733579821718,4.20248,4000.6,4000.5,0.90043086]
[1733579821919,4.20248,4000.6,4000.5,1.07522086]
[1733579822422,0.99468,4000.6,4000.5,0.90043086]
[1733579822624,4.20248,4000.6,4000.5,0.90043086]
[1733579823021,4.20248,4000.6,4000.5,1.07522086]
[1733579823226,4.20248,4000.6,4000.5,0.90043086]
[1733579827724,4.20248,4000.6,4000.5,1.07522086]
[1733579828120,4.20248,4000.6,4000.5,0.90043086]
[1733579828525,4.20248,4000.6,4000.5,1.07522086]
[1733579829028,4.20248,4000.6,4000.5,0.90043086]
[1733579831031,7.13914301,4000.6,4000.5,0.90043086]
[1733579832424,4.20248,4000.6,4000.5,0.90043086]
[1733579833126,7.13487327,4000.6,4000.5,0.90043086]
[1733579833433,7.13487327,4000.6,4000.5,1.07522086]
[1733579834629,4.20248,4000.6,4000.5,1.07522086]
[1733579835127,7.13594678,4000.6,4000.5,1.07522086]
[1733579835522,4.20248,4000.6,4000.5,1.07522086]
[1733579835928,6.14172573,4000.6,4000.5,1.07522086]
[1733579836127,3.2078,4000.6,4000.5,1.07522086]
[1733579836433,3.38259,4000.6,4000.5,1.07522086]
[1733579836930,3.38259,4000.6,4000.5,5.00867159]
[1733579837127,3.38259,4000.6,4000.5,4.83388159]
[1733579837525,6.31679736,4000.6,4000.5,4.83388159]
[1733579839934,6.31679736,4000.6,4000.5,5.00867159]
[1733579840430,6.31679736,4000.6,4000.5,1.07522086]
[1733579841429,3.38259,4000.6,4000.5,5.490457]
[1733579842128,3.38259,4000.6,4000.5,1.07522086]
[1733579842628,3.38259,4000.6,4000.5,5.49171085]
[1733579844733,8.25988333,4000.6,4000.5,1.07522086]
[1733579848633,8.08509333,4000.6,4000.5,1.07522086]
[1733579848830,3.2078,4000.6,4000.5,1.07522086]
[1733579850041,3.38259,4000.6,4000.5,1.07522086]
[1733579850239,8.25988333,4000.6,4000.5,1.07522086]
[1733579850832,8.25988333,4000.6,4000.5,0.17479]
[1733579851138,8.25988333,4000.6,4000.5,0.90043086]
[1733579851337,8.25988333,4000.6,4000.5,1.07522086]
[1733579851843,7.29935853,4000.6,4000.5,5.00992911]
[1733579852243,7.29935853,4000.6,4000.5,4.83513911]
[1733579852949,7.29935853,4000.6,4000.5,5.31761573]
[1733579859049,0.17479,4000.5,4000.4,5.90251856]
[1733579859249,0.17479,4000.5,4000.4,3.93552484]
[1733579859250,0.54959,4000.5,4000.4,3.93552484]
[1733579859445,0.3748,4000.5,4000.3,4.8359557]
[1733579859645,0.57279,4000.4,4000.3,0.90043086]
[1733579862351,0.57279,4000.4,3999.9,4.18544861]
[1733579862352,0.17481,4000.0,3999.9,3.93552484]
[1733579862548,0.17481,4000.0,3999.9,0.90043086]
[1733579862549,3.38261,4000.0,3999.9,0.90043086]
[1733579863241,0.17482,3999.7,3999.6,41.1899]
[1733579863447,0.17482,3999.7,3999.6,41.70043086]
[1733579863649,0.17482,3999.7,3999.6,0.90043086]
[1733579864050,0.17482,3999.7,3999.6,41.70043086]
[1733579864756,4.08645464,3999.7,3999.6,41.70043086]
[1733579864947,5.6613091,3999.9,3999.5,0.3979]
[1733579865254,0.17484,3999.4,3999.3,0.3899]
[1733579865550,0.17484,3999.4,3999.3,41.1899]
[1733579866054,0.17484,3999.4,3999.3,0.3899]
[1733579866055,0.55574,3999.4,3999.3,0.3899]
[1733579866853,0.55574,3999.4,3999.3,1.29033086]
[1733579867649,3.2078,3999.6,3999.5,0.17483]
[1733579868051,3.2078,3999.6,3999.5,44.91035484]
[1733579868355,3.2078,3999.6,3999.5,45.38260001]
[1733579868554,3.2078,3999.6,3999.5,51.28511857]
[1733579869055,3.2078,3999.6,3999.5,45.38260001]
[1733579869451,3.2078,3999.6,3999.5,45.78680001]
[1733579872059,3.2078,3999.6,3999.5,45.78638038]
[1733579872356,3.2078,3999.6,3999.5,4.98638038]
[1733579873953,0.17481,4000.1,4000.0,0.17481]
[1733579874257,0.1748,4000.2,4000.1,0.1748]
[1733579874457,0.1748,4000.2,4000.1,1.07523086]
[1733579879358,0.1748,4000.3,4000.2,0.1748]
[1733579881058,3.3826,4000.3,4000.2,0.1748]
[1733579882151,6.13891639,4000.3,4000.1,0.90043086]
[1733579882353,3.10591639,4000.2,4000.1,1.07523086]
[1733579882659,0.1748,4000.2,4000.1,1.07523086]
[1733579883361,3.10620379,4000.2,4000.1,1.07523086]
[1733579885255,6.31400379,4000.2,4000.1,1.07523086]
[1733579885461,6.31471516,4000.2,4000.1,1.07523086]
[1733579885763,6.31467382,4000.2,4000.1,1.07523086]
[1733579886257,6.3143768,4000.2,4000.1,1.07523086]
[1733579886463,3.3826,4000.2,4000.1,1.07523086]
[1733579886960,6.31498793,4000.2,4000.1,1.07523086]
[1733579889269,3.3826,4000.2,4000.1,1.07523086]
[1733579890065,6.31400949,4000.2,4000.1,1.07523086]
[1733579890359,3.3826,4000.2,4000.1,1.07523086]
[1733579891875,3.2078,4000.2,4000.1,1.07523086]
[1733579892068,3.3826,4000.2,4000.1,1.07523086]
[1733579892768,3.2078,4000.2,4000.1,1.07523086]
[1733579892965,3.3826,4000.2,4000.1,1.07523086]
[1733579898575,6.31400949,4000.2,4000.1,1.07523086]
[1733579898766,3.3826,4000.2,4000.1,1.07523086]
[1733579899167,6.31400949,4000.2,4000.1,1.07523086]
[1733579899367,3.3826,4000.2,4000.1,1.07523086]
[1733579899871,6.31400949,4000.2,4000.1,1.07523086]
[1733579904170,3.3826,4000.2,4000.1,1.07523086]
[1733579908783,3.2078,4000.2,4000.1,1.07523086]
[1733579910282,3.3826,4000.2,4000.1,1.07523086]
[1733579913285,7.29694727,4000.2,4000.1,5.49327418]
[1733579913485,7.29694727,4000.2,4000.1,1.07523086]
[1733579913679,7.29694727,4000.2,4000.1,5.0105947]
[1733579914280,7.29694727,4000.2,4000.1,1.07523086]
[1733579914483,7.29694727,4000.2,4000.1,5.01063126]
[1733579916382,7.29694727,4000.2,4000.1,5.01078168]
[1733579917082,7.29694727,4000.2,4000.1,5.49345517]
[1733579917385,7.29694727,4000.2,4000.1,1.07523086]
[1733579917586,7.29694727,4000.2,4000.1,5.49352933]
[1733579917883,7.29694727,4000.2,4000.1,5.01080627]
[1733579918880,7.29694727,4000.2,4000.1,5.49368203]
[1733579919083,7.29694727,4000.2,4000.1,1.07523086]
[1733579919390,3.3826,4000.2,4000.1,1.07523086]
[1733579924687,3.3826,4000.2,4000.1,0.90043086]
[1733579925097,3.3826,4000.2,4000.1,1.07524086]
[1733579925494,3.3826,4000.2,4000.1,0.90043086]
[1733579925687,3.3826,4000.2,4000.1,1.07524086]
[1733579927399,3.3826,4000.2,4000.1,5.01100014]
[1733579928596,3.3826,4000.2,4000.1,4.83619014]
[1733579930992,3.3826,4000.2,4000.1,5.01100014]
[1733579931696,3.3826,4000.2,4000.1,4.83619014]
[1733579933998,3.3826,4000.2,4000.1,5.25039014]
[1733579934394,3.3826,4000.2,4000.1,1.31463086]
[1733579937299,3.3826,4000.2,4000.1,1.70393086]
[1733579939398,3.3826,4000.2,4000.1,1.87874086]
[1733579939601,3.3826,4000.2,4000.1,1.70393086]
[1733579942404,3.3826,4000.2,4000.1,5.63969014]
[1733579945907,0.1748,4000.2,4000.1,5.63969014]
[1733579946106,3.3826,4000.2,4000.1,5.63969014]
[1733579947205,0.1748,4000.2,4000.1,5.63969014]
[1733579947405,3.3826,4000.2,4000.1,5.63969014]
[1733579949503,3.3826,4000.2,4000.1,1.70393086]
[1733579950002,3.3826,4000.2,4000.1,1.87874086]
[1733579950396,3.3826,4000.2,4000.1,1.70393086]
[1733579951508,3.3826,4000.2,4000.1,0.8035]
[1733579957416,8.27678214,4000.2,4000.1,0.8035]
[1733579960015,8.10198214,4000.2,3999.8,3.93575928]
[1733579960218,0.17482,3999.8,3999.7,3.93575928]
[1733579960415,3.38262,3999.8,3999.7,3.93575928]
[1733579960610,0.17482,3999.7,3999.6,3.93575928]
[1733579961018,0.17482,3999.7,3999.5,1.68223086]
[1733579961019,4.31794678,3999.7,3999.5,5.61799014]
[1733579961220,0.17483,3999.6,3999.5,5.61799014]
[1733579962123,0.17483,3999.6,3999.5,1.68223086]
[1733579964118,0.17483,3999.6,3999.5,0.7818]
[1733579964408,0.17483,3999.6,3999.5,1.68223086]
[1733579964816,3.10895261,3999.6,3999.5,1.68223086]
[1733579965323,0.17483,3999.6,3999.5,5.61799014]
[1733579966024,3.10895261,3999.6,3999.5,1.68223086]
[1733579966216,0.17483,3999.6,3999.5,1.68223086]
[1733579966719,3.10895261,3999.6,3999.5,1.68223086]
[1733579967420,3.10895261,3999.6,3999.5,1.27483086]
[1733579967615,3.91524678,3999.7,3999.2,4.83619014]
[1733579967818,3.38264,3999.3,3999.2,4.83619014]
[1733579968016,3.38264,3999.3,3999.2,0.90043086]
[1733579972121,2.93319974,3999.6,3999.2,0.90043086]
[1733579972318,0.17483,3999.6,3999.5,0.90043086]
[1733579972519,3.10802974,3999.6,3999.5,0.90043086]
[1733579972823,0.17483,3999.6,3999.5,42.46933086]
[1733579973017,3.10802974,3999.6,3999.5,42.46933086]
[1733579973223,0.17483,3999.6,3999.5,42.46933086]
[1733579973625,0.17483,3999.6,3999.5,1.66933086]
[1733579973626,3.10802974,3999.6,3999.5,1.66933086]
[1733579973824,0.17483,3999.6,3999.5,1.66933086]
[1733579974621,0.17483,3999.6,3999.5,1.29373086]
[1733579979930,3.10486825,3999.6,3999.5,0.3933]
[1733579980927,2.93003825,3999.6,3999.0,44.72928706]
[1733579981129,3.38265,3999.1,3999.0,0.90043086]
[1733579983728,3.2078,3999.1,3998.9,40.8]
[1733579984026,4.01418825,3999.0,3998.3,3.92928706]
[1733579984221,3.2078,3998.4,3998.3,1.85322086]
[1733579984421,3.2078,3998.4,3998.3,1.67833086]
[1733579984728,3.38268,3998.4,3998.3,0.7779]
[1733579985622,3.2078,3998.4,3998.0,46.00391792]
[1733579985821,3.2078,3998.4,3998.0,1.64803086]
[1733579985822,0.17489,3998.1,3998.0,1.64803086]
[1733579986230,0.17489,3998.1,3998.0,0.3734]
[1733579987635,0.17489,3998.2,3998.0,0.3734]
[1733579987829,0.4006,3998.3,3998.0,1.27383086]
[1733579988023,0.17489,3998.2,3998.0,1.44873086]
[1733579988222,0.4006,3998.3,3998.0,1.44873086]
[1733579988422,0.4006,3998.3,3998.0,1.27383086]
[1733579988423,0.17489,3998.2,3998.0,1.27383086]
[1733579988824,0.57549,3998.3,3998.0,1.44873086]
[1733579989030,0.17489,3998.2,3998.0,1.44873086]
[1733579989526,0.57549,3998.3,3998.1,0.17489]
[1733579989726,0.17489,3998.2,3998.0,1.44873086]
[1733579990125,0.17489,3998.2,3998.1,0.17489]
[1733579990328,0.17489,3998.2,3998.0,1.44873086]
[1733579990526,0.57549,3998.3,3998.1,0.17489]
[1733579990833,0.57549,3998.3,3998.2,0.4005]
[1733579991328,0.57549,3998.3,3998.2,0.57539]
[1733579991529,0.57549,3998.3,3998.2,0.4005]
[1733579992427,0.17489,3998.3,3998.2,0.4005]
[1733579994838,0.17489,3998.3,3998.2,0.57539]
[1733579995334,0.17489,3998.3,3998.2,0.4005]
[1733579995825,0.17489,3998.1,3998.0,1.27383086]
[1733579997030,0.90043086,3998.3,3997.9,0.4045]
[1733579997232,3.3827,3998.0,3997.9,0.4045]
[1733579997539,0.17491,3997.7,3997.6,0.17491]
[1733579997738,0.17491,3997.7,3997.6,0.4046]
[1733579997938,0.7565,3997.9,3997.5,0.3994]
[1733579998137,3.38272,3997.6,3997.0,3.2078]
[1733579998339,0.17492,3997.5,3997.1,0.17494]
[1733579998529,3.2078,3997.6,3997.1,0.17494]
[1733579998933,3.2078,3997.2,3997.1,0.17494]
[1733579999136,3.2078,3997.2,3997.0,0.17494]
[1733579999435,3.2078,3997.2,3997.1,0.17494]
[1733579999837,3.38273,3997.2,3997.0,0.17494]
[1733580000153,3.38273,3997.2,3996.9,1.28403086]
[1733580000154,3.2078,3997.2,3996.9,1.28403086]
[1733580000343,3.38274,3997.2,3996.9,1.28403086]
[1733580000539,3.38274,3997.2,3997.0,0.17494]
[1733580000847,3.2078,3997.2,3997.0,0.17494]
[1733580001039,3.2078,3997.2,3997.1,0.17494]
[1733580001340,0.17494,3997.1,3996.9,1.28403086]
[1733580001541,0.17494,3997.1,3997.0,0.17494]
[1733580001939,3.6159,3997.2,3997.0,0.17494]